bitfinex/quotes_ETHUSD_20260226
["timestamp","ask_amount","ask_price","bid_price","bid_amount"]
[1772116687858,0.002,2071.3,2069.9,1.20778781]
[1772116688158,0.002,2071.3,2070.0,1.04903347]
[1772116688539,0.002,2071.3,2070.5,2.56659751]
[1772116688744,0.002,2071.3,2070.0,0.08192]
[1772116688943,0.002,2071.3,2070.0,1.23588971]
[1772116689155,0.002,2071.3,2070.1,3.61563098]
[1772116689675,1.752,2071.2,2070.1,1.20765513]
[1772116690165,2.79851695,2071.2,2069.7,4.8315275]
[1772116690365,1.752,2071.2,2070.0,1.23588971]
[1772116690668,1.752,2071.2,2070.1,3.61563098]
[1772116690829,1.752,2071.2,2070.1,2.56659751]
[1772116691264,1.04651695,2071.1,2069.7,4.8315275]
[1772116691466,1.752,2071.2,2069.8,1.04903347]
[1772116691767,2.25360497,2071.1,2069.8,1.20780183]
[1772116692175,1.04651695,2071.0,2069.4,1.20807963]
[1772116692670,1.04651695,2070.7,2068.9,1.20837159]
[1772116693280,1.04651695,2070.7,2069.0,1.04903347]
[1772116693778,1.2073795,2070.6,2069.1,2.25728826]
[1772116694284,1.2073795,2070.6,2068.8,4.83348639]
[1772116694285,1.04651695,2070.5,2068.8,4.91559492]
[1772116694452,1.04651695,2070.3,2068.2,4.83490167]
[1772116694767,2.14011473,2070.4,2068.2,4.83490167]
[1772116694768,1.04651695,2070.1,2068.2,4.83490167]
[1772116694954,1.04651695,2070.1,2068.2,1.20878058]
[1772116695154,1.04651695,2069.9,2068.2,1.20878058]
[1772116695336,1.04651695,2069.9,2068.1,4.82552369]
[1772116695544,2.05819473,2070.0,2068.1,3.77649022]
[1772116695545,1.04651695,2069.7,2068.1,3.77649022]
[1772116695879,1.04651695,2069.5,2068.1,3.77649022]
[1772116696238,1.04651695,2069.5,2068.1,0.0011]
[1772116696840,1.04651695,2069.5,2068.1,1.20990045]
[1772116697253,1.04651695,2069.4,2068.1,0.0011]
[1772116697456,1.04651695,2069.2,2068.1,0.0011]
[1772116697768,1.04651695,2069.0,2068.1,0.0011]
[1772116698159,1.04651695,2069.0,2067.9,0.0011]
[1772116699243,1.747,2069.0,2067.9,0.0011]
[1772116699663,1.20837159,2068.9,2067.9,0.0011]
[1772116700064,1.04651695,2068.8,2067.9,0.0011]
[1772116700939,1.04651695,2068.7,2067.9,0.0011]
[1772116701775,1.04651695,2068.3,2067.5,0.0011]
[1772116702071,1.04651695,2068.1,2067.2,0.0011]
[1772116702471,1.744,2068.2,2067.2,0.0011]
[1772116703049,1.04651695,2068.0,2067.2,0.0011]
[1772116703269,1.744,2068.2,2067.2,0.0011]
[1772116703566,1.04651695,2068.1,2067.2,0.0011]
[1772116703771,1.04651695,2067.9,2067.2,0.0011]
[1772116703975,1.20889748,2068.0,2067.2,0.0011]
[1772116704150,1.20887955,2068.1,2067.2,0.0011]
[1772116705055,1.742,2068.3,2067.2,0.0011]
[1772116705360,4.83460182,2068.5,2067.2,1.05013347]
[1772116705361,1.742,2068.5,2067.2,1.05013347]
[1772116705770,1.742,2068.5,2067.5,1.04903347]
[1772116706082,2.95064756,2068.5,2067.4,1.21024833]
[1772116706287,4.01687012,2068.5,2067.4,1.21024833]
[1772116706577,4.01687012,2068.5,2067.4,0.001]
[1772116706781,1.06622256,2068.3,2067.4,0.001]
[1772116707384,2.95064756,2068.5,2067.4,0.001]
[1772116707749,1.06622256,2068.4,2067.4,0.001]
[1772116708589,3.12441729,2068.2,2067.4,0.001]
[1772116708755,1.06622256,2068.2,2067.4,0.001]
[1772116709903,2.27506159,2068.1,2067.4,0.001]
[1772116710216,2.27506159,2068.1,2067.2,0.0011]
[1772116710217,2.54233517,2068.0,2067.2,0.0011]
[1772116710345,1.06622256,2067.9,2067.1,0.001]
[1772116710549,1.74,2067.8,2067.1,0.001]
[1772116711179,2.54233517,2067.7,2066.9,0.001]
[1772116711545,1.74,2067.8,2066.1,3.86381797]
[1772116711546,1.47611261,2067.3,2066.1,3.86381797]
[1772116711746,1.20936532,2067.2,2066.1,2.65381417]
[1772116711969,1.739,2067.1,2065.9,2.24667425]
[1772116712178,1.739,2067.1,2065.9,0.0011]
[1772116712750,1.06622256,2066.8,2065.9,0.0011]
[1772116713473,1.06622256,2066.8,2065.7,0.0011]
[1772116713687,1.739,2067.1,2065.7,0.0011]
[1772116713688,1.06622256,2066.6,2065.7,0.0011]
[1772116713852,1.20977498,2066.5,2065.7,0.0011]
[1772116714050,1.06622256,2066.3,2065.7,0.0011]
[1772116714287,1.06622256,2066.0,2064.6,3.70461499]
[1772116715377,3.21611261,2066.4,2064.8,1.03545268]
[1772116715378,1.74,2066.4,2064.8,1.03545268]
[1772116715584,1.74,2066.4,2064.9,1.03545268]
[1772116715977,1.20989207,2066.3,2065.0,1.21065375]
[1772116716355,1.20989207,2066.3,2065.0,2.24610643]
[1772116717084,2.94987809,2066.4,2065.1,1.03545268]
[1772116717391,2.94941108,2067.2,2065.7,1.22230892]
[1772116717755,4.02486158,2067.2,2065.7,1.03545268]
[1772116718175,1.0754505,2066.9,2065.4,1.21041928]
[1772116718388,2.94941108,2067.2,2065.6,1.06119923]
[1772116718557,4.02486158,2067.2,2065.6,1.06119923]
[1772116718881,4.02486158,2067.2,2065.7,0.18685624]
[1772116719055,4.02486158,2067.2,2065.7,1.24805547]
[1772116719252,5.50097419,2067.2,2065.7,1.06119923]
[1772116719789,1.0754505,2067.1,2065.7,1.06119923]
[1772116719975,2.94941108,2067.2,2065.7,1.06119923]
[1772116720177,2.94941108,2067.2,2065.8,1.21018491]
[1772116720493,2.94941108,2067.2,2065.9,1.06119923]
[1772116721059,0.001,2067.1,2065.9,1.06119923]
[1772116721256,0.001,2067.1,2066.2,1.06119923]
[1772116721472,0.001,2067.1,2066.2,3.53737628]
[1772116722060,0.001,2067.1,2066.3,1.20989207]
[1772116724388,2.95195594,2068.0,2066.6,1.06119923]
[1772116724566,2.95195594,2068.0,2066.9,1.06119923]
[1772116724567,2.95190389,2068.0,2066.9,1.06119923]
[1772116724766,1.743,2068.0,2067.0,1.24805547]
[1772116724976,1.743,2068.5,2067.2,1.24805547]
[1772116725181,2.95160756,2068.5,2067.2,1.24805547]
[1772116725770,2.95160756,2068.5,2067.2,1.06119923]
[1772116726086,1.743,2068.5,2067.6,1.06119923]
[1772116726264,4.83304136,2069.1,2067.6,1.06119923]
[1772116726265,2.95035222,2069.0,2067.9,1.06119923]
[1772116726465,2.95035222,2069.0,2067.8,1.20901441]
[1772116726674,4.02580272,2069.0,2067.5,4.83666818]
[1772116727094,1.742,2069.0,2067.9,1.06119923]
[1772116727290,1.742,2069.0,2068.1,1.06119923]
[1772116727494,1.742,2069.0,2068.2,0.18685624]
[1772116728067,0.002,2069.3,2068.4,1.47611261]
[1772116728391,0.002,2069.3,2068.5,1.20860526]
[1772116728894,0.002,2069.3,2068.2,1.20873671]
[1772116729390,4.29356311,2069.2,2067.8,1.2089792]
[1772116729785,1.0754505,2069.1,2067.5,4.83656505]
[1772116730174,1.0754505,2069.1,2067.7,0.18685624]
[1772116730361,1.20825479,2069.1,2067.8,1.20901441]
[1772116731795,1.0754505,2068.8,2067.3,2.27046371]
[1772116731981,1.0754505,2068.8,2067.3,1.20930544]
[1772116732181,1.0754505,2068.8,2067.1,2.51838067]
[1772116732386,1.0754505,2068.6,2067.1,2.51838067]
[1772116732601,1.741,2068.5,2067.1,2.51838067]
[1772116732969,1.0754505,2068.4,2066.9,2.27070015]
[1772116733177,1.0754505,2068.4,2066.9,2.27073676]
[1772116733700,1.0754505,2068.0,2066.2,2.47617705]
[1772116733907,1.0754505,2067.6,2066.2,2.47617705]
[1772116734119,1.0754505,2067.4,2065.9,1.21009644]
[1772116734421,2.28481582,2067.2,2065.8,0.0011]
[1772116734595,1.0754505,2067.1,2065.8,0.0011]
[1772116734995,1.47611261,2066.9,2065.8,0.0011]
[1772116735323,1.0754505,2066.8,2065.8,0.0011]
[1772116735623,1.0754505,2066.6,2065.8,0.0011]
[1772116735790,1.0754505,2066.2,2065.5,0.0011]
[1772116735990,1.0754505,2066.2,2064.0,4.84489346]
[1772116735991,1.0754505,2065.7,2064.2,1.21112295]
[1772116736226,1.738,2065.6,2064.2,3.65879489]
[1772116736392,1.738,2065.6,2064.3,0.97155933]
[1772116736729,1.738,2065.6,2064.6,1.47611261]
[1772116737091,2.94830941,2065.6,2064.4,1.21100561]
[1772116737585,1.738,2065.6,2064.4,2.18256494]
[1772116737905,2.94831365,2065.6,2064.4,1.21100561]
[1772116738295,1.21031365,2065.6,2064.4,1.21100561]
[1772116738614,2.95031365,2065.6,2064.4,1.21100561]
[1772116738923,2.95031365,2065.6,2064.2,4.84402247]
[1772116739732,2.95030767,2065.6,2064.3,1.15841557]
[1772116740187,1.03562307,2066.3,2064.2,4.84402247]
[1772116740188,1.21000919,2066.1,2064.8,0.18685624]
[1772116740527,1.20977498,2066.5,2065.2,0.18685624]
[1772116740743,1.20977498,2066.5,2065.0,0.18685624]
[1772116740744,2.24539805,2066.5,2065.0,0.18685624]
[1772116741042,1.738,2066.6,2065.1,2.52959194]
[1772116741335,1.03562307,2066.5,2065.0,0.18685624]
[1772116741483,2.94773102,2066.6,2065.2,0.18685624]
[1772116741900,2.94772255,2066.6,2065.2,0.18685624]
[1772116742300,5.45945823,2066.6,2064.9,1.29263238]
[1772116742539,1.03562307,2066.1,2064.8,1.21073247]
[1772116742741,1.21006776,2066.0,2064.6,5.8146434]
[1772116742908,1.21006776,2066.0,2064.6,0.97155933]
[1772116743098,1.21006776,2066.0,2064.5,4.84308407]
[1772116743313,1.21006776,2066.0,2064.1,2.44767194]
[1772116743314,1.03562307,2065.8,2064.2,1.21112295]
[1772116743519,1.03562307,2065.1,2063.8,1.211323]
[1772116743698,1.03562307,2065.1,2063.6,1.21141928]
[1772116744329,2.77562307,2065.0,2063.6,1.21141928]
[1772116744548,2.77562307,2065.0,2063.5,4.85341409]
[1772116744549,1.03562307,2064.7,2063.5,0.00751373]
[1772116744746,2.24668735,2064.3,2063.5,0.00751373]
[1772116744906,1.21103236,2064.4,2063.5,1.21903205]
[1772116745306,5.87902753,2064.7,2063.5,1.21903205]
[1772116745551,1.03562307,2064.6,2063.5,1.21903205]
[1772116745714,4.84340446,2064.7,2063.0,0.1627804]
[1772116745715,1.47611261,2063.9,2063.0,0.1627804]
[1772116746037,1.743,2063.9,2063.0,1.37460504]
[1772116746239,3.21911261,2063.9,2063.0,1.37460241]
[1772116746403,6.58640446,2064.7,2063.0,1.37460052]
[1772116746603,2.95382966,2064.7,2063.0,1.37460052]
[1772116746802,2.95382966,2064.7,2063.2,1.21170996]
[1772116746803,1.743,2064.7,2063.2,1.21170996]
[1772116747045,2.95383646,2064.7,2063.2,1.21170996]
[1772116747700,1.47611261,2064.5,2063.2,1.21170996]
[1772116747903,1.03562307,2064.5,2063.1,1.2117239]
[1772116748445,1.743,2064.7,2063.2,1.15841557]
[1772116748751,1.21047789,2065.3,2064.0,1.21124031]
[1772116749059,2.24610096,2065.3,2064.0,1.21124031]
[1772116749266,6.58791158,2065.4,2064.0,1.21124031]
[1772116749267,1.746,2065.4,2064.1,0.18685624]
[1772116749475,2.904,2066.0,2064.3,1.15841557]
[1772116749759,1.21009983,2066.0,2064.3,1.15841557]
[1772116749969,1.21009983,2066.0,2064.5,0.18685624]
[1772116750167,1.21009983,2066.0,2064.7,0.18685624]
[1772116750833,1.21009983,2066.0,2064.8,1.21077101]
[1772116751160,1.21009983,2066.0,2064.4,1.21100561]
[1772116751161,2.2457229,2066.0,2064.4,1.21100561]
[1772116751370,2.51173568,2065.8,2064.4,1.21100561]
[1772116751539,1.47611261,2065.4,2063.9,1.21129899]
[1772116751747,2.78362307,2065.3,2063.9,1.21129899]
[1772116752952,1.2105365,2065.2,2063.7,1.317]
[1772116753155,1.2105365,2065.2,2063.8,0.18685624]
[1772116753365,2.95851515,2065.3,2064.0,0.18685624]
[1772116753688,3.99413822,2065.3,2063.7,0.97155933]
[1772116753987,3.99413822,2065.3,2063.7,2.28655933]
[1772116754188,1.03562307,2065.2,2063.6,4.8458919]
[1772116754473,1.03562307,2065.2,2063.6,6.1598919]
[1772116754474,1.03562307,2065.1,2063.6,6.1598919]
[1772116754778,1.03562307,2065.1,2063.6,4.8458919]
[1772116754939,1.21065375,2065.0,2063.5,1.21147509]
[1772116755862,1.21065375,2065.0,2063.6,0.18685624]
[1772116756169,2.51173568,2065.9,2064.0,0.26877624]
[1772116756334,5.87654211,2065.8,2064.1,1.313]
[1772116756534,2.51173568,2065.7,2064.0,0.97155933]
[1772116756838,5.87654211,2065.8,2064.2,0.18685624]
[1772116757047,1.742,2066.0,2064.4,0.18685624]
[1772116757342,2.95211395,2066.0,2064.4,1.15841557]
[1772116757543,2.95211395,2066.0,2064.7,0.18685624]
[1772116757735,2.95211395,2066.0,2064.7,1.50185624]
[1772116757937,1.20998121,2066.2,2064.7,1.50185624]
[1772116758270,1.47611261,2064.8,2063.1,1.21176869]
[1772116758446,1.746,2064.9,2063.7,0.0011]
[1772116758768,0.783,2065.4,2063.8,1.47611261]
[1772116758975,0.783,2065.4,2064.0,1.21124031]
[1772116758976,1.21047789,2065.3,2064.0,1.21124031]
[1772116759275,1.03562307,2065.2,2063.7,0.0011]
[1772116759475,1.03562307,2065.2,2063.7,1.21251315]
[1772116759638,1.03562307,2064.8,2063.7,0.0011]
[1772116760468,1.03562307,2064.5,2063.5,0.0011]
[1772116760668,1.03562307,2065.0,2063.5,1.21262213]
[1772116761047,1.03562307,2065.0,2063.5,0.0011]
[1772116761048,1.21071238,2064.9,2063.5,0.0011]
[1772116761374,1.21047789,2065.3,2063.8,1.47611261]
[1772116761871,1.21047789,2065.3,2063.9,0.18685624]
[1772116762842,1.21047789,2065.3,2064.1,0.18685624]
[1772116763048,1.21047789,2065.3,2064.2,1.21112295]
[1772116763569,1.21047789,2065.3,2064.1,0.18685624]
[1772116763781,1.21047789,2065.3,2064.1,1.39803618]
[1772116764265,1.21047789,2065.3,2063.9,1.39492]
[1772116764468,1.21047789,2065.3,2063.8,0.26877624]
[1772116764842,1.21047789,2065.3,2063.8,2.71644818]
[1772116765265,1.21047789,2065.3,2064.0,0.18685624]
[1772116765475,1.21018491,2065.9,2064.3,0.18685624]
[1772116765773,1.21018491,2065.9,2064.5,0.18685624]
[1772116765980,1.21018491,2065.9,2064.4,1.313]
[1772116766284,1.21018491,2065.9,2064.5,0.18685624]
[1772116767044,1.20989207,2066.3,2064.6,2.45226066]
[1772116767281,4.84056831,2066.4,2065.1,1.21059512]
[1772116768568,4.84056831,2066.4,2065.2,0.18685624]
[1772116768879,0.99828743,2066.3,2064.7,1.21082966]
[1772116769174,0.99828743,2066.3,2064.4,3.99907521]
[1772116769347,0.99828743,2066.3,2064.4,2.5229626]
[1772116769348,0.99828743,2066.1,2064.4,2.5229626]
[1772116769548,0.99828743,2066.1,2064.5,3.04658552]
[1772116769861,1.20995063,2066.2,2064.8,0.18685624]
[1772116771175,1.21095063,2066.2,2064.8,0.18685624]
[1772116771380,0.001,2066.2,2064.9,1.21071238]
[1772116771696,0.001,2066.2,2064.5,2.07043747]
[1772116771697,0.99828743,2066.1,2064.3,1.309]
[1772116771859,0.99828743,2065.9,2064.3,1.309]
[1772116772785,0.99828743,2065.9,2064.2,2.18722915]
[1772116772988,1.739,2066.0,2064.3,0.97614805]
[1772116773190,0.001,2066.2,2065.0,0.18685624]
[1772116773379,0.001,2066.2,2065.1,1.21059512]
[1772116774791,0.001,2066.2,2065.4,0.18685624]
[1772116775585,0.001,2066.2,2065.5,1.21036068]
[1772116775963,2.73128743,2067.4,2065.7,0.97614805]
[1772116776168,1.20930682,2067.3,2065.8,1.16300429]
[1772116776363,1.20930682,2067.3,2065.9,0.97614805]
[1772116776588,1.20907288,2067.7,2066.2,0.18685624]
[1772116776772,2.20736031,2067.7,2066.4,0.18685624]
[1772116777492,4.83629153,2067.9,2066.5,1.20977498]
[1772116777693,5.83457896,2067.9,2066.4,1.20980321]
[1772116778090,5.83457896,2067.9,2066.3,6.14441442]
[1772116778091,0.99113952,2067.8,2066.2,1.20995063]
[1772116778261,0.99113952,2067.7,2066.2,1.20995063]
[1772116778893,4.83629153,2067.9,2066.3,0.18685624]
[1772116779205,4.83629153,2067.9,2066.5,0.18685624]
[1772116779565,4.83629153,2067.9,2066.6,1.20971644]
[1772116780071,4.83629153,2067.9,2066.5,1.20974063]
[1772116780590,4.83629153,2067.9,2066.6,0.18685624]
[1772116780985,4.83629153,2067.9,2066.6,1.21712194]
[1772116781368,4.83629153,2067.9,2066.5,1.20974063]
[1772116781681,5.82743105,2067.9,2066.5,1.20974063]
[1772116782190,5.82743105,2067.9,2066.6,0.18685624]
[1772116782491,4.83629153,2067.9,2066.6,0.18685624]
[1772116782867,4.83629153,2067.9,2066.6,1.21712194]
[1772116783266,4.83629153,2067.9,2066.2,4.83909992]
[1772116783267,0.99113952,2067.1,2066.1,0.08192]
[1772116783467,0.99113952,2066.9,2065.3,1.21047789]
[1772116783775,0.99113952,2066.6,2065.1,4.84193603]
[1772116783988,0.99113952,2066.6,2065.1,5.87220173]
[1772116784175,1.2096579,2066.7,2065.3,2.07043747]
[1772116784375,1.2096579,2066.7,2065.2,1.0302657]
[1772116784780,1.2096579,2066.7,2064.3,7.24624695]
[1772116784781,0.99113952,2066.6,2064.8,4.84288773]
[1772116785304,1.2096579,2066.7,2064.1,4.06174833]
[1772116785305,0.99113952,2066.4,2064.3,1.21106428]
[1772116785601,0.99113952,2066.4,2064.5,2.07043747]
[1772116785968,0.99113952,2066.2,2064.3,1.21106428]
[1772116786168,0.99113952,2066.0,2064.3,1.21106428]
[1772116786907,0.99113952,2066.0,2064.5,2.07043747]
[1772116787087,0.99113952,2066.0,2064.6,0.18685624]
[1772116787283,1.722,2066.1,2064.6,0.18685624]
[1772116788109,2.20120728,2066.0,2064.6,1.21085144]
[1772116788411,0.99113952,2065.9,2064.3,4.84424296]
[1772116788578,0.99113952,2065.9,2064.2,1.21108327]
[1772116788782,0.99113952,2065.7,2063.9,1.21237726]
[1772116789101,0.99113952,2065.4,2063.9,0.0011]
[1772116789300,0.99113952,2065.2,2063.9,1.21235665]
[1772116789675,0.99113952,2065.2,2063.9,0.0011]
[1772116789981,0.99113952,2065.0,2063.9,0.0011]
[1772116792106,0.99113952,2064.8,2063.9,0.0011]
[1772116793001,1.21071238,2064.9,2063.7,0.0011]
[1772116793002,0.99113952,2064.6,2063.7,0.0011]
[1772116793804,1.718,2064.7,2063.7,0.0011]
[1772116794410,1.2108883,2064.6,2063.7,0.0011]
[1772116794582,2.92886457,2064.7,2063.7,0.0011]
[1772116795204,2.92886457,2064.7,2063.7,0.18795624]
[1772116795205,1.718,2064.7,2063.7,0.18795624]
[1772116795412,1.21057613,2065.2,2063.7,3.28865941]
[1772116795585,1.21057613,2065.2,2063.9,0.18685624]
[1772116795792,2.9254869,2065.3,2063.9,1.21712194]
[1772116795988,2.92549024,2065.3,2063.9,1.21712194]
[1772116796794,2.92549024,2065.3,2064.0,1.21124031]
[1772116797384,2.92547789,2065.3,2064.1,0.18685624]
[1772116797804,1.715,2065.3,2064.1,0.18685624]
[1772116798003,1.715,2065.3,2064.1,3.25378146]
[1772116798314,1.715,2065.3,2064.1,5.84000138]
[1772116798524,1.715,2065.3,2064.2,0.99648775]
[1772116798837,1.21025039,2065.7,2064.4,1.21100561]
[1772116799000,1.01671014,2065.6,2064.4,1.21100561]
[1772116799182,1.01671014,2065.6,2064.2,1.21112295]
[1772116799813,1.01671014,2065.6,2064.1,7.43087]
[1772116799814,1.01671014,2065.6,2063.9,1.21235286]
[1772116800012,1.01671014,2065.0,2063.9,0.0011]
[1772116800215,1.01671014,2064.8,2063.7,0.0011]
[1772116800598,5.078,2064.7,2063.7,0.0011]
[1772116800822,2.22759844,2064.6,2063.7,0.0011]
[1772116801016,1.01671014,2064.5,2063.7,0.0011]
[1772116801322,1.01671014,2064.5,2063.0,0.1627804]
[1772116801323,1.01671014,2064.5,2063.0,3.44499989]
[1772116801509,1.708,2064.9,2063.4,3.06692522]
[1772116801810,1.708,2064.9,2063.6,0.18685624]
[1772116802497,1.708,2064.9,2063.6,1.18334399]
[1772116803016,1.01671014,2064.7,2063.1,1.21176869]
[1772116803417,1.01671014,2064.7,2063.2,0.18685624]
[1772116804129,2.91871263,2064.9,2063.4,0.26877624]
[1772116804313,2.91871263,2064.9,2063.4,1.18334399]
[1772116804889,1.21032735,2065.6,2063.9,1.18334399]
[1772116805326,2.22703749,2065.6,2063.9,1.18334399]
[1772116805498,2.22703749,2065.6,2063.6,1.285]
[1772116805499,1.01671014,2065.5,2063.6,1.285]
[1772116805696,1.01671014,2065.5,2063.7,0.26877624]
[1772116805893,1.01671014,2065.5,2063.7,1.26526399]
[1772116806093,1.01671014,2065.5,2063.8,0.99648775]
[1772116806295,2.91628847,2065.7,2064.2,0.18685624]
[1772116806539,1.01671014,2065.6,2063.9,1.07840775]
[1772116806699,1.01671014,2065.6,2064.0,0.18685624]
[1772116806901,1.01671014,2065.4,2063.5,1.2115338]
[1772116807096,1.01671014,2065.4,2063.6,0.99648775]
[1772116807397,1.01671014,2065.4,2063.9,0.18685624]
[1772116808132,1.01671014,2065.4,2063.8,0.18685624]
[1772116808338,1.01671014,2065.4,2063.8,1.18334399]
[1772116808630,1.01671014,2065.4,2063.8,0.18685624]
[1772116808829,1.01671014,2065.4,2063.7,0.18685624]
[1772116809027,1.21047789,2065.3,2063.9,1.18334399]
[1772116809236,1.21045802,2065.4,2063.9,1.18334399]
[1772116809420,1.706,2065.7,2064.1,1.18334399]
[1772116809421,0.001,2065.3,2064.1,1.18334399]
[1772116809623,0.001,2065.3,2064.3,0.18685624]
[1772116809828,4.83981148,2066.2,2064.4,0.99648775]
[1772116810549,4.83981148,2066.2,2064.3,1.55177624]
[1772116810550,1.01671014,2066.1,2064.3,0.08192]
[1772116810839,1.01671014,2066.1,2064.2,0.18685624]
[1772116811003,1.01671014,2065.9,2064.3,1.21106428]
[1772116811416,1.01671014,2065.9,2064.4,0.18685624]
[1772116811610,1.21006776,2066.0,2064.5,1.07840775]
[1772116812432,2.2267779,2066.0,2064.5,1.07840775]
[1772116812730,2.2267779,2066.0,2064.6,0.18685624]
[1772116812942,1.01671014,2065.9,2064.3,1.21106428]
[1772116813237,2.22689505,2065.8,2064.3,0.18685624]
[1772116813534,1.01671014,2066.1,2064.3,1.18334399]
[1772116815129,1.01671014,2065.9,2064.5,0.18685624]
[1772116815328,1.21006776,2066.0,2064.5,1.18334399]
[1772116815759,4.17271014,2066.3,2064.8,0.08192]
[1772116816053,0.001,2066.4,2065.1,0.18685624]
[1772116816202,1.01671014,2066.3,2065.1,0.18685624]
[1772116816409,1.01671014,2066.3,2064.6,0.26877624]
[1772116816834,1.01671014,2066.3,2064.5,0.99648775]
[1772116817223,2.22666077,2066.2,2064.8,0.18685624]
[1772116817534,1.01671014,2066.1,2064.7,1.21082966]
[1772116818822,1.01671014,2066.1,2064.0,4.84482026]
[1772116818823,1.01671014,2065.9,2064.1,3.79736344]
[1772116819336,1.21018491,2065.8,2064.4,0.18685624]
[1772116819632,1.21018491,2065.8,2064.4,1.18334399]
[1772116820316,2.22689505,2065.8,2064.4,1.18334399]
[1772116820522,1.01671014,2065.7,2064.3,0.18685624]
[1772116820838,1.21083498,2066.4,2065.0,3.06692522]
[1772116821009,1.20942383,2067.1,2065.5,1.26526399]
[1772116821211,1.20942383,2067.1,2065.8,0.18685624]
[1772116821437,1.01671014,2067.2,2065.8,2.25729371]
[1772116821648,1.2092801,2067.4,2065.8,4.52778146]
[1772116822012,0.001,2066.1,2066.0,0.18685624]
[1772116822235,1.01671014,2067.3,2066.0,0.18685624]
[1772116822426,1.01671014,2067.1,2065.7,0.18685624]
[1772116822630,1.01671014,2067.1,2065.8,10.993958]
[1772116822940,1.01671014,2067.0,2065.7,2.666376]
[1772116823112,1.01671014,2067.0,2065.6,26.335582]
[1772116823316,1.01671014,2067.0,2066.0,19.307418]
[1772116823521,1.69,2067.2,2066.1,0.18685624]
[1772116823825,1.69,2067.2,2066.2,26.706799]
[1772116824018,1.69,2067.2,2066.2,12.010976]
[1772116824242,1.20916543,2067.6,2066.5,0.18685624]
[1772116824437,3.68763849,2067.7,2066.6,22.701092]
[1772116824647,3.68763849,2067.7,2066.6,11.042774]
[1772116824842,3.68763849,2067.7,2066.4,30.0]
[1772116825020,3.68763849,2067.7,2066.4,19.597304]
[1772116825214,1.01671014,2067.6,2066.5,1.20977498]
[1772116825414,1.01671014,2067.6,2066.1,2.07043747]
[1772116825415,1.01671014,2067.6,2066.1,1.21000919]
[1772116825621,1.01671014,2067.6,2066.2,8.51862]
[1772116826021,1.21007401,2067.7,2066.5,2.25729371]
[1772116826253,1.21007401,2067.7,2066.6,30.0]
[1772116826254,1.21008455,2067.7,2066.6,30.0]
[1772116826435,1.21007836,2067.7,2066.6,22.687875]
[1772116826637,1.21008136,2067.7,2066.6,22.687875]
[1772116826952,1.01428553,2067.6,2066.1,1.21000919]
[1772116827117,1.01428553,2067.6,2066.2,15.186763]
[1772116827317,1.01428553,2067.6,2066.1,1.21000919]
[1772116827318,1.01428553,2067.4,2066.1,1.20999392]
[1772116827638,1.01428553,2067.4,2066.1,3.931775]
[1772116827817,1.01428553,2067.4,2066.2,2.423416]
[1772116828429,1.01428553,2067.3,2065.0,1.21065375]
[1772116828652,1.01428553,2067.3,2065.3,2.07043747]
[1772116828950,1.01428553,2067.3,2065.4,6.441897]
[1772116829136,1.01428553,2067.3,2065.6,15.320547]
[1772116829445,1.01428553,2067.1,2065.7,1.2102435]
[1772116829628,1.01428553,2066.9,2065.8,2.835346]
[1772116830035,4.8374613,2067.4,2066.0,30.0]
[1772116830036,1.01428553,2067.4,2066.0,30.0]
[1772116830333,1.684,2067.8,2066.5,0.18685624]
[1772116830536,2.22437686,2067.7,2066.8,5.76006]
[1772116830720,0.001,2067.7,2066.7,12.702974]
[1772116830926,0.001,2067.7,2066.9,16.059626]
[1772116831152,0.001,2067.7,2066.9,3.44781]
[1772116831526,0.001,2067.7,2067.1,5.875149]
[1772116831852,0.001,2067.7,2067.1,4.148149]
[1772116832233,1.20879608,2068.2,2067.1,4.148149]
[1772116832422,1.20857809,2068.6,2067.5,30.0]
[1772116832621,1.20857809,2068.6,2067.5,19.565722]
[1772116832846,1.20857809,2068.6,2067.5,14.918076]
[1772116833053,1.682,2068.8,2067.7,31.47565799]
[1772116833054,2.89043377,2068.8,2067.7,31.47565799]
[1772116833244,2.89043377,2068.8,2067.0,5.63645631]
[1772116833245,1.01428553,2068.7,2067.1,13.146987]
[1772116833447,1.01428553,2068.6,2067.1,4.903322]
[1772116833756,2.22289079,2068.5,2067.1,7.995635]
[1772116833930,2.22289079,2068.5,2067.2,8.475659]
[1772116834457,0.001,2067.5,2067.2,8.475659]
[1772116834664,0.001,2067.5,2066.7,14.063671]
[1772116834865,0.001,2067.5,2066.6,5.98729]
[1772116835032,0.001,2067.5,2066.6,4.376009]
[1772116835234,0.001,2067.5,2066.5,1.275]
[1772116835743,0.001,2067.5,2066.4,2.665222]
[1772116835949,0.001,2067.5,2066.5,31.275]
[1772116836155,0.001,2067.5,2066.6,11.08715]
[1772116837255,0.001,2067.5,2066.6,4.353448]
[1772116837459,0.001,2067.5,2066.6,2.0554]
[1772116837657,0.001,2067.5,2066.3,8.432383]
[1772116837977,0.001,2067.5,2066.4,9.140326]
[1772116838147,0.001,2067.5,2066.7,13.616088]
[1772116838331,0.001,2067.5,2066.7,11.830302]
[1772116838531,0.001,2067.5,2066.7,10.232802]
[1772116838727,0.001,2067.5,2066.3,17.707421]
[1772116838956,0.001,2067.5,2066.5,10.622826]
[1772116839383,1.21324772,2067.7,2067.4,1.47586288]
[1772116839384,0.00414317,2067.7,2067.4,1.47586288]
[1772116839670,1.20887349,2068.1,2067.4,2.68511055]
[1772116839969,1.20872213,2068.3,2067.5,17.733914]
[1772116840461,1.20872213,2068.3,2067.2,4.83739145]
[1772116840462,4.83408404,2068.7,2068.1,1.47586288]
[1772116840666,4.83408404,2068.7,2067.6,6.094562]
[1772116840855,6.50608404,2068.7,2067.4,5.390772]
[1772116841163,0.98532298,2068.6,2067.3,1.277]
[1772116841738,0.98532298,2068.6,2067.1,1.20942288]
[1772116841739,0.98532298,2068.4,2067.1,1.20942288]
[1772116842037,0.98532298,2068.4,2067.2,8.013296]
[1772116842436,1.20860526,2068.5,2067.2,9.48847462]
[1772116842663,1.20859318,2068.6,2067.6,27.154846]
[1772116842829,1.672,2068.7,2067.8,31.47517862]
[1772116843034,1.672,2068.7,2067.8,1.47517862]
[1772116843948,0.001,2068.8,2068.2,1.47517862]
[1772116844264,0.001,2068.8,2068.2,1.276]
[1772116845339,0.001,2068.8,2067.9,1.20895594]
[1772116845340,1.209437,2068.8,2067.9,1.20895594]
[1772116845644,1.209437,2068.8,2067.8,4.83582378]
[1772116845645,1.209437,2068.8,2067.8,2.895004]
[1772116846067,1.209437,2068.8,2067.7,7.15584]